[Event "Sardinia World Festival-A 2024"]
[Site "Orosei"]
[Date "2024.04.28"]
[Round "2.47"]
[White "Botez, Alexandra"]
[Black "Dieli, Riccardo"]
[Result "1-0"]
[ECO "A59"]
[WhiteElo "1970"]
[BlackElo "1873"]
[Annotator "NA RC"]
[PlyCount "65"]
[EventDate "2024.04.26"]
[EventType "swiss"]
[EventCountry "ITA"]
[SourceTitle "playchess.com"]
[Source "ChessBase"]
[SourceQuality "1"]
[TimeControl "40/5400+30:1800+30"]

1. d4 {[%emt 0:01:04]} Nf6 {[%emt 0:00:10]} 2. c4 {[%emt 0:00:08]} c5 {[%emt 0:00:14]} 3. d5 {[%emt 0:00:06]} b5 {[%emt 0:00:24]} 4. cxb5 {[%emt 0:00:07]} a6 {[%emt 0:00:29]} 5. bxa6 {[%emt 0:00:08]} Bxa6 {[%emt 0:00:30]} 6. Nc3 {[%emt 0:00:09]} g6 {[%emt 0:00:23]} 7. e4 {[%emt 0:00:06]} Bxf1 {[%emt 0:00:33]} 8. Kxf1 {[%emt 0:00:10]} d6 {[%emt 0:00:27]} 9. g3 {[%emt 0:00:24]} Bg7 {[%emt 0:00:12]} 10. Kg2 {[%emt 0:00:04]} O-O {[%emt 0:00:21]} 11. Nf3 {[%emt 0:00:03]} Nbd7 {[%emt 0:01:53]} 12. a4 {[%emt 0:00:40]} Ng4 {[%emt 0:04:28]} 13. Qc2 {[%emt 0:03:43]} Nge5 {[%emt 0:01:08]} 14. Nxe5 {[%emt 0:01:14]} Nxe5 {[%emt 0:00:45]} 15. f4 {[%emt 0:00:29]} Nd7 {[%emt 0:00:43]} 16. b3 {[%emt 0:02:50]} Qb6 {[%emt 0:08:00]} 17. Rb1 {[%emt 0:13:02]} Rfc8 {[%emt 0:07:49]} 18. Bd2 {[%emt 0:08:27]} Nb8 {[%emt 0:01:40]} 19. Nb5 {[%emt 0:05:38]} Na6 {[%emt 0:01:47]} 20. Na3 {[%emt 0:01:38]} Nb4 {[%emt 0:02:08]} 21. Bxb4 {[%emt 0:00:21]} Qxb4 {[%emt 0:00:45]} 22. Nc4 {[%emt 0:00:16]} Rcb8 {[%emt 0:02:01]} 23. Rhc1 {[%emt 0:01:41]} Qb7 {[%emt 0:03:10]} 24. Qd3 {[%emt 0:02:32]} Qa6 {[%emt 0:03:30]} 25. Rf1 {[%emt 0:03:52]} Rb4 {[%emt 0:02:11]} 26. h4 {[%emt 0:10:40]} Rab8 {[%emt 0:02:37]} 27. Qf3 {[%emt 0:02:11]} Rf8 {[%emt 0:12:08]} 28. f5 {[%emt 0:02:03]} f6 {[%emt 0:04:38]} 29. fxg6 {[%emt 0:05:27]} hxg6 {[%emt 0:00:35]} 30. Qg4 {[%emt 0:00:09]} Qb7 {[%emt 0:08:04]} 31. Na5 {[%emt 0:02:26]} Qb6 {[%emt 0:03:41]} 32. Nc6 {[%emt 0:00:18]} Rxb3 {[%emt 0:03:09]} 33. Nxe7+ {[%emt 0:00:20]} 1-0

[Event "Sardinia World Festival-A 2024"]
[Site "Orosei"]
[Date "2024.04.28"]
[Round "2.48"]
[White "Corvi, Maddalena"]
[Black "Botez, Andrea"]
[Result "0-1"]
[ECO "E97"]
[WhiteElo "1641"]
[BlackElo "1879"]
[Annotator "NA RC"]
[PlyCount "129"]
[EventDate "2024.04.26"]
[EventType "swiss"]
[EventCountry "ITA"]
[SourceTitle "playchess.com"]
[Source "ChessBase"]
[SourceQuality "1"]
[TimeControl "40/5400+30:1800+30"]

1. d4 {[%emt 0:00:03]} Nf6 {[%emt 0:04:40]} 2. c4 {[%emt 0:00:06]} g6 {[%emt 0:00:16]} 3. Nc3 {[%emt 0:00:07]} Bg7 {[%emt 0:00:07]} 4. e4 {[%emt 0:00:07]} d6 {[%emt 0:00:06]} 5. Nf3 {[%emt 0:00:05]} O-O {[%emt 0:00:11]} 6. Be2 {[%emt 0:00:06]} Qe8 {[%emt 0:01:38]} 7. Bg5 {[%emt 0:02:34]} e5 {[%emt 0:09:19]} 8. d5 {[%emt 0:04:06]} h6 {[%emt 0:01:07]} 9. Bh4 {[%emt 0:00:41]} g5 {[%emt 0:01:08]} 10. Bg3 {[%emt 0:00:16]} Nh5 {[%emt 0:01:34]} 11. Nd2 {[%emt 0:10:03]} Nxg3 {[%emt 0:01:09]} 12. hxg3 {[%emt 0:02:10]} f5 {[%emt 0:05:30]} 13. exf5 {[%emt 0:05:12]} Bxf5 {[%emt 0:00:09]} 14. Nde4 {[%emt 0:00:35]} a5 {[%emt 0:02:47]} 15. b3 {[%emt 0:03:50]} Na6 {[%emt 0:00:39]} 16. Qc2 {[%emt 0:03:57]} Qe7 {[%emt 0:09:32]} 17. a3 {[%emt 0:04:55]} Rab8 {[%emt 0:24:13]} 18. Rb1 {[%emt 0:04:52]} Nc5 {[%emt 0:06:34]} 19. b4 {[%emt 0:05:37]} axb4 {[%emt 0:00:11]} 20. axb4 {[%emt 0:01:04]} Nxe4 {[%emt 0:03:02]} 21. Nxe4 {[%emt 0:00:33]} c6 {[%emt 0:02:59]} 22. Qd3 {[%emt 0:08:14]} cxd5 {[%emt 0:15:53]} 23. Qxd5+ {[%emt 0:05:53]} Qf7 {[%emt 0:02:07]} 24. Qxf7+ {[%emt 0:02:35]} Rxf7 {[%emt 0:00:06]} 25. Bd3 {[%emt 0:00:44]} b5 {[%emt 0:01:51]} 26. cxb5 {[%emt 0:04:26]} d5 {[%emt 0:00:17]} 27. Nc5 {[%emt 0:01:17]} e4 {[%emt 0:01:44]} 28. Be2 {[%emt 0:21:09]} e3 {[%emt 0:01:17]} 29. Rb3 {[%emt 0:00:29]} exf2+ {[%emt 0:00:14]} 30. Kxf2 {[%emt 0:08:39]} Be4+ {[%emt 0:01:51]} 31. Ke3 {[%emt 0:00:57]} Bxg2 {[%emt 0:00:23]} 32. Rg1 {[%emt 0:00:20]} Re8+ {[%emt 0:03:56]} 33. Kd3 {[%emt 0:00:34]} Bf3 {[%emt 0:00:00]} 34. Re1 {[%emt 0:00:13]} Bxe2+ {[%emt 0:00:00]} 35. Rxe2 {[%emt 0:00:10]} Rb8 {[%emt 0:00:09]} 36. Rg2 {[%emt 0:00:41]} Rxb5 {[%emt 0:00:16]} 37. Kc2 {[%emt 0:00:15]} Be5 {[%emt 0:01:15]} 38. Re2 {[%emt 0:00:17]} Bd6 {[%emt 0:00:07]} 39. Re8+ {[%emt 0:00:18]} Kg7 {[%emt 0:00:05]} 40. Nd3 {[%emt 0:00:47]} Bxg3 {[%emt 0:00:17]} 41. Kc3 {[%emt 0:30:25]} Rbb7 {[%emt 0:30:59]} 42. Kd4 {[%emt 0:00:18]} Rf5 {[%emt 0:00:00]} 43. b5 {[%emt 0:00:00]} Rf3 {[%emt 0:00:00]} 44. Kc5 {[%emt 0:00:00]} Bf2+ {[%emt 0:00:00]} 45. Kxd5 {[%emt 0:00:00]} Bg1 {[%emt 0:00:00]} 46. Re1 {[%emt 0:00:00]} Ba7 {[%emt 0:00:10]} 47. Re6 {[%emt 0:00:00]} g4 {[%emt 0:02:46]} 48. Kc4 {[%emt 0:01:51]} Bb6 {[%emt 0:01:05]} 49. Kd5 {[%emt 0:02:47]} Bd8 {[%emt 0:00:15]} 50. Rd6 {[%emt 0:00:23]} Be7 {[%emt 0:00:33]} 51. Re6 {[%emt 0:00:40]} Bd8 {[%emt 0:00:20]} 52. Rc6 {[%emt 0:00:18]} g3 {[%emt 0:00:23]} 53. Rg6+ {[%emt 0:00:25]} Kh7 {[%emt 0:00:34]} 54. Rd6 {[%emt 0:00:38]} Ba5 {[%emt 0:00:26]} 55. Ke4 {[%emt 0:00:18]} Rf1 {[%emt 0:00:47]} 56. Nf4 {[%emt 0:00:15]} Re7+ {[%emt 0:00:18]} 57. Re6 {[%emt 0:00:58]} Rxf4+ {[%emt 0:00:18]} 58. Kxf4 {[%emt 0:00:05]} Rxe6 {[%emt 0:00:07]} 59. Kxg3 {[%emt 0:00:12]} Bc7+ {[%emt 0:00:30]} 60. Kh4 {[%emt 0:00:15]} Kg6 {[%emt 0:00:33]} 61. Rb4 {[%emt 0:00:28]} h5 {[%emt 0:00:30]} 62. Rb3 {[%emt 0:00:29]} Re4+ {[%emt 0:01:10]} 63. Kh3 {[%emt 0:00:14]} Re6 {[%emt 0:00:42]} 64. Kh4 {[%emt 0:00:07]} Bb6 {[%emt 0:00:12]} 65. Rb2 {[%emt 0:00:49]} 0-1

[Event "Sardinia World Festival-A 2024"]
[Site "Orosei"]
[Date "2024.04.28"]
[Round "2.50"]
[White "Geraci, Daniele"]
[Black "Piovesan, Sara"]
[Result "0-1"]
[ECO "C24"]
[WhiteElo "1486"]
[BlackElo "1579"]
[Annotator "NA RC"]
[PlyCount "50"]
[EventDate "2024.04.26"]
[EventType "swiss"]
[EventCountry "ITA"]
[SourceTitle "playchess.com"]
[Source "ChessBase"]
[SourceQuality "1"]
[TimeControl "40/5400+30:1800+30"]

1. e4 {[%emt 0:00:04]} e5 {[%emt 0:00:04]} 2. Bc4 {[%emt 0:00:09]} Nf6 {[%emt 0:00:11]} 3. d3 {[%emt 0:00:04]} c6 {[%emt 0:00:08]} 4. Bg5 {[%emt 0:04:59]} d5 {[%emt 0:04:40]} 5. Bxf6 {[%emt 0:01:37]} gxf6 {[%emt 0:03:08]} 6. exd5 {[%emt 0:01:13]} cxd5 {[%emt 0:00:38]} 7. Bb3 {[%emt 0:01:01]} a5 {[%emt 0:08:36]} 8. c3 {[%emt 0:02:32]} Bf5 {[%emt 0:06:16]} 9. Qf3 {[%emt 0:02:33]} Be6 {[%emt 0:00:54]} 10. a3 {[%emt 0:02:48]} a4 {[%emt 0:02:47]} 11. Ba2 {[%emt 0:00:14]} Be7 {[%emt 0:06:44]} 12. Nd2 {[%emt 0:02:09]} Ra6 {[%emt 0:06:43]} 13. Ne2 {[%emt 0:06:15]} Rd6 {[%emt 0:07:30]} 14. Ng3 {[%emt 0:00:23]} Qd7 {[%emt 0:03:11]} 15. Nh5 {[%emt 0:00:19]} Bg4 {[%emt 0:01:31]} 16. Ng7+ {[%emt 0:03:04]} Kf8 {[%emt 0:00:59]} 17. Qg3 {[%emt 0:00:29]} Rg8 {[%emt 0:06:18]} 18. h3 {[%emt 0:00:46]} Bf5 {[%emt 0:03:04]} 19. Nxf5 {[%emt 0:06:28]} Rxg3 {[%emt 0:01:48]} 20. Nxg3 {[%emt 0:00:08]} Qb5 {[%emt 0:01:56]} 21. O-O-O {[%emt 0:01:10]} Rb6 {[%emt 0:01:56]} 22. b4 {[%emt 0:01:06]} axb3 {[%emt 0:00:22]} 23. Nxb3 {[%emt 0:01:25]} Nc6 {[%emt 0:01:39]} 24. Kc2 {[%emt 0:00:50]} Na5 {[%emt 0:01:07]} 25. Rb1 {[%emt 0:00:05]} Qa4 {[%emt 0:00:49]} 0-1

[Event "Sardinia World Festival-A 2024"]
[Site "Orosei"]
[Date "2024.04.29"]
[Round "3.1"]
[White "Zhalmakhanov, Ramazan"]
[Black "Sjugirov, Sanan"]
[Result "1/2-1/2"]
[ECO "C88"]
[WhiteElo "2490"]
[BlackElo "2689"]
[Annotator "TA"]
[PlyCount "49"]
[EventDate "2024.04.26"]
[EventType "swiss"]
[EventCountry "ITA"]
[SourceTitle "playchess.com"]
[Source "ChessBase"]
[SourceQuality "1"]
[TimeControl "40/5400+30:1800+30"]

{[%evp 14,49,50,30,32,28,29,29,24,24,17,26,35,21,22,10,8,14,14,0,0,0,-2,-14,-11,-15,0,0,0,0,18,21,18,11,26,11,39,37]} 1. e4 {[%emt 0:00:03]} e5 {[%emt 0:00:30]} 2. Nf3 {[%emt 0:00:10]} Nc6 {[%emt 0:00:14]} 3. Bb5 {[%emt 0:00:07][%cal Bf1b5,Bb5a4,Ba4b3,Bb3f7][%mdl 32]} a6 {[%emt 0:00:40]} 4. Ba4 {[%emt 0:00:09]} Nf6 {[%emt 0:00:28]} 5. O-O {[%emt 0:00:13]} Be7 {[%emt 0:01:12]} 6. Re1 {[%emt 0:00:21]} b5 {[%emt 0:01:03]} 7. Bb3 {[%emt 0:00:09]} Bb7 {[%emt 0:00:33]} 8. d4 {[%emt 0:05:17]} Nxd4 {[%emt 0:01:12] [#]} 9. Bxf7+ {[%emt 0:13:11]} Kf8 $1 {[%emt 0:00:53] ...Nxf3+ is the strong threat.} ({But not} 9... Kxf7 10. Nxe5+ Kg8 11. Qxd4 $16) 10. Nxe5 {[%emt 0:03:31]} d6 $1 {[%emt 0:00:45] White has an edge.} 11. Qxd4 {[%emt 0:00:48][%cal Of7e6] And now Be6! would win.} dxe5 {[%emt 0:00:38]} 12. Qxd8+ {[%emt 0:00:27]} Rxd8 {[%emt 0:00:08]} 13. Be6 {[%emt 0:06:15]} Nxe4 {[%emt 0:08:03]} 14. Be3 {[%emt 0:04:28]} Nc5 {[%emt 0:07:56][%cal Be4c5,Bc5e6,Be6d4][%mdl 32]} 15. Bg4 {[%emt 0:07:52]} Kf7 {[%emt 0:12:41]} 16. Nc3 {[%emt 0:12:44]} Ne6 {[%emt 0:05:42]} 17. Rac1 {[%emt 0:19:04]} Nd4 {[%emt 0:04:04]} 18. Bd1 {[%emt 0:06:47]} Nf5 {[%emt 0:05:25]} 19. Ba7 {[%emt 0:03:45]} Ra8 {[%emt 0:32:34]} 20. Bc5 {[%emt 0:00:17]} Bxc5 {[%emt 0:00:36]} 21. Rxe5 {[%emt 0:00:07]} Bd6 {[%emt 0:01:37]} 22. Rxf5+ {[%emt 0:00:25]} Kg6 {[%emt 0:00:05]} 23. Rh5 {[%emt 0:03:15]} Bf4 {[%emt 0:04:48] This pair of bishops is nice.} 24. Rb1 {[%emt 0:00:29]} Rad8 {[%emt 0:00:08][%cal Od8d1] [#] aiming for ...Rxd1+!} 25. Rh3 {[%emt 0:03:25] Weighted Error Value: White=0.05 (flawless) /Black=0.05 (flawless) .  Inaccurate:     	---       	Black=1      OK:         	White=9     	Black=6      Best:        	White=1     	Black=2      Strong:       	---       	Black=2} 1/2-1/2

[Event "Sardinia World Festival-A 2024"]
[Site "Orosei"]
[Date "2024.04.29"]
[Round "3.2"]
[White "Pichot, Alan"]
[Black "Girel, Joseph"]
[Result "1-0"]
[ECO "B47"]
[WhiteElo "2644"]
[BlackElo "2479"]
[Annotator "TA"]
[PlyCount "97"]
[EventDate "2024.04.26"]
[EventType "swiss"]
[EventCountry "ITA"]
[SourceTitle "playchess.com"]
[Source "ChessBase"]
[SourceQuality "1"]
[TimeControl "40/5400+30:1800+30"]

{[%evp 24,97,45,42,53,26,36,24,22,29,28,32,38,22,30,23,25,16,39,39,42,35,60,6,21,36,18,23,27,27,24,19,18,10,14,21,19,8,8,8,8,8,38,35,39,31,28,32,51,26,72,73,77,77,76,75,69,29,348,96,423,423,491,484,484,357,473,473,473,184,473,466,29971,29972,4627,1715]} 1. e4 {[%emt 0:02:38]} c5 {[%emt 0:00:44]} 2. Nf3 {[%emt 0:00:11]} a6 {[%emt 0:00:18]} 3. Nc3 {[%emt 0:06:02]} e6 {[%emt 0:00:37]} 4. g3 {[%emt 0:01:44]} Nc6 {[%emt 0:00:53]} 5. d4 {[%emt 0:02:40]} cxd4 {[%emt 0:00:27]} 6. Nxd4 {[%emt 0:00:09]} Qc7 {[%emt 0:01:22]} 7. Bg2 {[%emt 0:00:36]} Nf6 {[%emt 0:01:40]} 8. O-O {[%emt 0:00:19]} Nxd4 {[%emt 0:00:10]} 9. Qxd4 {[%emt 0:00:06]} Bc5 {[%emt 0:00:11]} 10. Bf4 {[%emt 0:08:04]} d6 {[%emt 0:00:21]} 11. Qd2 {[%emt 0:00:14]} h6 {[%emt 0:00:25]} 12. Rad1 {[%emt 0:01:33][%cal Ba1d1,Bd1d6,Bd6b6][%mdl 32]} e5 {[%emt 0:00:14]} 13. Be3 {[%emt 0:00:06]} Bb4 {[%emt 0:01:04]} 14. a3 {[%emt 0:15:38]} (14. Nb5 $5 axb5 15. Qxb4 $14) 14... Bxc3 {[%emt 0:00:15]} 15. Qxc3 {[%emt 0:00:05]} Qxc3 {[%emt 0:00:24] White has an edge.} 16. bxc3 {[%emt 0:00:04]} Be6 {[%emt 0:13:55]} 17. Rxd6 {[%emt 0:01:13]} Rc8 {[%emt 0:00:16]} 18. Bd2 {[%emt 0:01:51]} Ke7 {[%emt 0:04:30]} 19. Rb6 {[%emt 0:00:28]} Rhd8 {[%emt 0:00:08][%cal Bh8d8,Bd8d2,Bd2c2][%mdl 32]} 20. Rxb7+ {[%emt 0:08:58]} Ke8 {[%emt 0:06:07]} 21. Bc1 {[%emt 0:04:08][%cal Bd2c1,Bc1b2,Bb2c3][%mdl 32]} Rxc3 {[%emt 0:10:55]} 22. Bb2 {[%emt 0:00:26]} Rc5 {[%emt 0:00:08][%cal Od8d2]} 23. h3 {[%emt 0:02:32]} (23. Rb1 $14) 23... Rd2 {[%emt 0:03:07] [#]} 24. c4 $1 {[%emt 0:06:45]} Nd7 {[%emt 0:10:05]} 25. Bc3 {[%emt 0:02:28]} Rc2 {[%emt 0:07:26]} 26. Bb4 {[%emt 0:00:38] Threatens to win with Rxd7.} R5xc4 {[%emt 0:01:58]} 27. f4 {[%emt 0:15:13]} exf4 {[%emt 0:03:39]} 28. gxf4 {[%emt 0:00:08] aiming for f5.} f5 {[%emt 0:02:24]} 29. Re1 {[%emt 0:00:21]} Rc1 {[%emt 0:01:45]} 30. Rxc1 {[%emt 0:06:32]} Rxc1+ {[%emt 0:00:11]} 31. Kf2 {[%emt 0:04:14]} Rc2+ {[%emt 0:00:46]} 32. Kg3 {[%emt 0:00:49]} g5 {[%emt 0:01:57]} 33. Bf3 {[%emt 0:01:02]} fxe4 {[%emt 0:02:04]} 34. Bxe4 {[%emt 0:00:29]} gxf4+ {[%emt 0:00:19]} 35. Kxf4 {[%emt 0:00:33]} Rc4 {[%emt 0:00:45][%cal Oe6d5] Strongly threatening ...Bd5!} 36. Ke3 {[%emt 0:01:39]} Bxh3 {[%emt 0:02:25]} (36... a5 $11 37. Bg6+ (37. Bxa5 Rxe4+ 38. Kxe4 Nc5+ 39. Ke5 Nxb7 $11) 37... Kd8 38. Bxa5+ Kc8) 37. Ra7 $16 {[%emt 0:00:32]} Be6 {[%emt 0:05:39] Prevents Bd5} 38. Bg6+ {[%emt 0:01:41]} Kd8 {[%emt 0:00:24]} 39. Rxa6 {[%emt 0:01:10] White is more active.} Bd5 {[%emt 0:04:12]} 40. Bf5 {[%emt 0:01:07][%cal Of5d7] Hoping for Bxd7!} Bb7 $2 {[%emt 0:07:45][%mdl 8192]} (40... Bc6 $11 {and Black stays safe.}) 41. Rxh6 $2 {[%emt 0:10:10]} (41. Re6 $1 $18 {Black must now prevent Ba5+.} Kc8 42. Rxh6) 41... Nc5 $2 {[%emt 0:06:01][%mdl 8192] [#]} (41... Bc6 $16 {is tougher.}) 42. Rh7 $1 $18 {[%emt 0:02:32]} Bc6 {[%emt 0:07:16] [#]} 43. Ba5+ $1 {[%emt 0:02:11] A strong pair of Bishops.} Ke8 {[%emt 0:00:02]} 44. Rc7 {[%emt 0:00:22] Rc8+ would kill now.} Ra4 {[%emt 0:12:36]} 45. Bb4 {[%emt 0:04:01]} Na6 {[%emt 0:00:33]} 46. Rc8+ {[%emt 0:01:37]} (46. Rxc6 Nxb4 47. axb4 Rxb4 $14) 46... Kf7 {[%emt 0:00:01]} 47. Bc2 {[%emt 0:00:09]} ({Stronger than} 47. Rxc6 Nxb4 48. axb4 Rxb4 $11) 47... Rxb4 {[%emt 0:10:11]} (47... Bb5 $18 48. Bb3+ Kg6 49. Rg8+ (49. Bxa4 Bxa4 50. Ra8 Bb5 $18) 49... Kf6 50. Rf8+ (50. Bxa4 Bxa4 51. Ra8 Bb5 $18) 50... Kg6 51. Bxa4 Bxa4) 48. Rxc6 {[%emt 0:00:37]} ({Worse is} 48. axb4 Nxb4 49. Be4 Nd5+ 50. Kf3 Ne7 $11) 48... Rb2 {[%emt 0:00:07]} 49. Bg6+ {[%emt 0:00:05] Weighted Error Value: White=0.20 (precise) /Black=0.66.  Loses game:     	---       	Black=2      Missed win:     	White=1     	---        Mistake:       	White=1     	Black=2      Inaccurate:     	White=2     	Black=3      OK:         	White=16    	Black=18     Best:        	White=5     	Black=1      Strong:       	White=2     	---} 1-0

[Event "Sardinia World Festival-A 2024"]
[Site "Orosei"]
[Date "2024.04.29"]
[Round "3.3"]
[White "Velten, Paul"]
[Black "Dardha, Daniel"]
[Result "1/2-1/2"]
[ECO "B32"]
[WhiteElo "2481"]
[BlackElo "2630"]
[Annotator "TA"]
[PlyCount "78"]
[EventDate "2024.04.26"]
[EventType "swiss"]
[EventCountry "ITA"]
[SourceTitle "playchess.com"]
[Source "ChessBase"]
[SourceQuality "1"]
[TimeControl "40/5400+30:1800+30"]

{[%evp 10,78,31,26,22,27,34,34,42,30,33,0,0,0,16,0,13,16,12,13,14,5,27,37,46,14,45,38,56,54,98,97,118,89,87,33,37,33,34,66,116,105,109,13,27,0,0,0,0,0,0,0,0,0,0,0,0,0,0,0,0,0,0,0,0,0,0,0,0,0,0]} 1. e4 {[%emt 0:01:09]} c5 {[%emt 0:00:42]} 2. Nf3 {[%emt 0:00:21][%cal Bg1f3,Bf3d4,Bd4b5,Bb5c3][%mdl 32]} Nc6 {[%emt 0:00:19]} 3. d4 {[%emt 0:00:48]} cxd4 {[%emt 0:01:05]} 4. Nxd4 {[%emt 0:00:50]} e5 {[%emt 0:01:47]} 5. Nb5 {[%emt 0:01:42]} d6 {[%emt 0:00:11]} 6. c4 {[%emt 0:01:18]} g6 {[%emt 0:00:20]} 7. Bd3 {[%emt 0:01:59]} Be6 {[%emt 0:01:02]} 8. O-O {[%emt 0:04:22]} Rc8 {[%emt 0:03:07] White is slightly better.} 9. N5c3 {[%emt 0:03:32]} Bh6 {[%emt 0:05:55]} 10. Nd5 {[%emt 0:06:51]} Bxc1 {[%emt 0:03:39]} 11. Qxc1 {[%emt 0:00:32]} Nf6 {[%emt 0:05:37]} 12. Nbc3 {[%emt 0:13:48]} O-O {[%emt 0:01:37]} 13. Nxf6+ {[%emt 0:04:23]} Qxf6 {[%emt 0:01:28]} 14. b3 {[%emt 0:00:22]} a6 {[%emt 0:05:02]} 15. Qd2 {[%emt 0:01:23]} h5 {[%emt 0:01:51]} 16. Rad1 {[%emt 0:02:05]} Kg7 {[%emt 0:06:36]} 17. Nd5 {[%emt 0:04:26]} Qd8 {[%emt 0:11:53]} 18. f4 {[%emt 0:05:30]} exf4 {[%emt 0:14:43]} 19. Nxf4 {[%emt 0:00:24]} (19. Qxf4 Bxd5 20. exd5 Ne5 $11) 19... Bg4 {[%emt 0:02:25]} 20. Be2 {[%emt 0:02:12]} Re8 {[%emt 0:07:04]} 21. Bxg4 {[%emt 0:03:42]} ({Don't play} 21. Qxd6 $6 Rxe4 22. Bxg4 hxg4 $11) (21. Nd5 {is more complex.} Be6 22. Nf6 Rh8 23. Qe3) 21... hxg4 {[%emt 0:00:05]} 22. Qf2 {[%emt 0:09:17]} (22. Qxd6 Rxe4 23. Qd7 Qxd7 24. Rxd7 b5 $14) (22. Qb2+ $16 Ne5 23. Nd5) 22... Ne5 $1 $14 {[%emt 0:04:20]} 23. Rd5 {[%emt 0:00:59]} Qe7 {[%emt 0:02:04]} 24. Qd4 {[%emt 0:01:50]} Rc6 {[%emt 0:03:07]} (24... b5 $14) 25. Nd3 $16 {[%emt 0:02:23] White is more active.} Qc7 {[%emt 0:06:53]} 26. Nxe5 {[%emt 0:04:40]} (26. Nb4 $16 Rb6 27. Qd2) 26... dxe5 $11 {[%emt 0:01:14]} 27. Qd1 {[%emt 0:07:33]} Qb6+ {[%emt 0:01:27] The position is equal.} 28. Rf2 {[%emt 0:00:46]} Qe3 {[%emt 0:02:35]} 29. Qxg4 {[%emt 0:02:27] Hoping for Qf3.} b5 {[%emt 0:00:25]} 30. Qf3 {[%emt 0:04:19]} (30. cxb5 $2 {is the wrong capture.} Rc2 31. Qf3 Rc1+ 32. Rd1 Qxf3 33. Rxc1 Qxe4 (33... Qe3 $2 34. Rc7 $19) 34. bxa6 Re7 $19) 30... Qxf3 {[%emt 0:00:18]} 31. Rxf3 {[%emt 0:00:09]} bxc4 {[%emt 0:00:04][%mdl 4096] Endgame. KRR-KRR} 32. Rc3 {[%emt 0:00:12]} Rec8 {[%emt 0:01:12]} 33. Rxe5 {[%emt 0:00:27]} cxb3 {[%emt 0:00:44] [#] ...b2 would now be deadly.} 34. Rxc6 {[%emt 0:00:27]} Rxc6 {[%emt 0:00:35]} 35. axb3 {[%emt 0:00:04] KR-KR} Rc1+ {[%emt 0:00:30]} 36. Kf2 {[%emt 0:00:09]} Rc2+ {[%emt 0:00:11]} 37. Kf1 {[%emt 0:00:24]} Rc1+ {[%emt 0:00:17]} 38. Kf2 {[%emt 0:00:04]} Rc2+ {[%emt 0:00:06]} 39. Kf1 {[%emt 0:00:03]} Rc1+ {[%emt 0:00:05] Weighted Error Value: White=0.12 (very precise) /Black=0.10 (very precise) .  Mistake:       	White=2     	Black=1      Inaccurate:     	White=3     	Black=2      OK:         	White=14    	Black=10     Best:        	White=1     	Black=1      Strong:       	---       	Black=1} 1/2-1/2